bitfinex-derivatives/quotes_ETHF0:USTF0_20250410
["timestamp","ask_amount","ask_price","bid_price","bid_amount"]
[1744303774470,3.31702,1508.4,1507.9,12.3512]
[1744303774668,1.32702,1508.2,1508.1,3.2078]
[1744303774974,1.32694,1508.3,1508.1,4.53484]
[1744303775177,1.32683,1508.4,1508.2,1.32695]
[1744303775371,16.69177,1508.7,1508.3,40.8]
[1744303775577,1.3268,1508.4,1508.3,40.8]
[1744303776069,3.21777539,1508.5,1508.3,40.8]
[1744303776270,3.21777539,1508.5,1508.3,42.12684]
[1744303776271,1.33673539,1508.5,1508.3,42.12684]
[1744303776582,1.33674539,1508.5,1508.3,42.12684]
[1744303776777,1.33674539,1508.5,1508.3,45.33464]
[1744303776971,1.3268,1508.4,1508.3,42.12684]
[1744303777273,1.3268,1508.4,1508.3,40.8]
[1744303777574,6.3268,1508.4,1508.3,40.8]
[1744303778363,1.32698,1508.2,1508.1,0.00997539]
[1744303778868,1.32698,1508.2,1508.1,40.80997539]
[1744303779163,10.128,1508.3,1508.2,1.32698]
[1744303779364,11.45489,1508.3,1508.2,9.145]
[1744303779569,11.45489,1508.3,1508.2,10.47198]
[1744303779570,10.128,1508.3,1508.2,10.47198]
[1744303781081,11.45489,1508.3,1508.2,10.47198]
[1744303781266,9.3357,1508.4,1508.2,9.145]
[1744303781466,10.66252,1508.4,1508.2,9.145]
[1744303781671,0.00997539,1508.5,1508.4,1.3268]
[1744303782071,0.00997539,1508.5,1508.4,11.1032]
[1744303783067,0.00997539,1508.5,1508.4,16.1032]
[1744303783270,5.39e-06,1508.5,1508.4,26.9251]
[1744303783678,9.3666,1509.2,1509.1,1.32619]
[1744303783977,9.3666,1509.2,1509.1,4.53399]
[1744303784375,9.3666,1509.2,1509.1,45.33399]
[1744303784675,104.3688,1509.9,1509.2,3.31526]
[1744303784871,9.4242,1509.6,1509.5,4.53364]
[1744303785375,1.32593,1509.4,1509.3,3.2078]
[1744303785772,5.0,1509.4,1509.2,1.32609]
[1744303785974,1.32599,1509.4,1509.1,44.0078]
[1744303786280,1.32593,1509.4,1509.3,3.2078]
[1744303786579,8.2078,1509.4,1509.1,40.8]
[1744303786877,4.5339,1509.2,1509.1,40.8]
[1744303787374,9.5339,1509.2,1509.1,40.8]
[1744303787581,15.7503,1509.2,1509.1,40.8]
[1744303787877,1.32619,1509.1,1509.0,0.00994199]
[1744303788078,10.98199,1509.1,1509.0,0.00994199]
[1744303788271,15.98199,1509.1,1509.0,0.00994199]
[1744303788475,10.98199,1509.1,1509.0,40.80994199]
[1744303789376,15.98199,1509.1,1509.0,40.80994199]
[1744303789583,10.98199,1509.1,1509.0,45.34402199]
[1744303789785,10.98199,1509.1,1509.0,40.80994199]
[1744303790179,10.98199,1509.1,1509.0,42.13622199]
[1744303790573,9.6558,1509.1,1509.0,42.13622199]
[1744303790778,15.98199,1509.1,1509.0,40.80994199]
[1744303791371,10.98199,1509.1,1509.0,40.80994199]
[1744303791583,15.98199,1509.1,1509.0,40.80994199]
[1744303791979,15.98199,1509.1,1509.0,0.00994199]
[1744303792183,10.98199,1509.1,1509.0,0.00994199]
[1744303792486,15.98199,1509.1,1509.0,0.00994199]
[1744303792671,10.98199,1509.1,1509.0,0.00994199]
[1744303792982,15.98199,1509.1,1509.0,0.00994199]
[1744303793783,15.98199,1509.1,1509.0,1.99e-06]
[1744303795678,1.32619,1509.1,1509.0,1.99e-06]
[1744303795882,11.26019,1509.1,1509.0,1.99e-06]
[1744303796186,21.31919,1509.1,1509.0,1.99e-06]
[1744303796381,26.31919,1509.1,1509.0,1.99e-06]
[1744303798583,1.32716,1508.0,1507.9,4.53504]
[1744303798778,1.32716,1508.0,1507.9,13.2925]
[1744303798980,1.32716,1508.0,1507.9,54.0925]
[1744303799285,1.32716,1508.0,1507.9,13.2925]
[1744303799488,11.33039,1508.1,1508.0,1.32716]
[1744303799786,1.33692972,1508.1,1508.0,10.0847]
[1744303800287,0.00983972,1508.1,1508.0,16.41186]
[1744303801091,0.00983972,1508.1,1508.0,26.61376]
[1744303801481,0.00983972,1508.1,1508.0,32.60576]
[1744303801884,0.00983972,1508.1,1508.0,31.2786]
[1744303802079,1.33690972,1508.1,1508.0,10.0847]
[1744303802277,1.32716,1508.0,1507.9,3.2078]
[1744303802483,0.00983972,1508.1,1507.9,3.2078]
[1744303802687,0.00983972,1508.1,1508.0,1.32716]
[1744303803088,0.00983972,1508.1,1508.0,19.1794]
[1744303803390,0.00983972,1508.1,1507.9,4.53497]
[1744303803391,1.32724,1507.9,1507.8,40.80994199]
[1744303803587,1.32724,1507.9,1507.8,50.08864199]
[1744303803792,1.33697972,1508.1,1507.9,1.32716]
[1744303803992,1.32716,1508.0,1507.9,9.2787]
[1744303804287,0.00983972,1508.1,1507.9,9.2787]
[1744303804495,1.32716,1508.0,1507.9,9.2787]
[1744303805392,10.98096,1508.0,1507.9,9.2787]
[1744303805893,1.32724,1507.9,1507.8,40.80994199]
[1744303806390,3.31858,1507.7,1507.1,9.1998]
[1744303806610,3.2078,1507.4,1507.1,10.0143]
[1744303806797,10.061,1507.6,1507.2,40.8]
[1744303806798,1.32777,1507.3,1507.2,40.8]
[1744303807204,1.32772,1507.4,1507.2,49.0078]
[1744303807411,1.32777,1507.3,1507.2,40.8]
[1744303807904,1.32786,1507.2,1507.1,0.00994199]
[1744303808302,1.32786,1507.2,1507.1,40.80994199]
[1744303808908,11.31006,1507.2,1507.1,40.80994199]
[1744303809109,11.31006,1507.2,1507.1,0.00994199]
[1744303809306,3.32017,1507.0,1506.6,13.38278206]
[1744303809507,3.32017,1507.0,1506.7,9.8078]
[1744303809700,14.9197,1507.2,1506.8,44.0078]
[1744303809904,0.00994199,1507.3,1507.2,1.32786]
[1744303810198,0.00994199,1507.3,1507.2,4.53566]
[1744303810510,10.012,1507.8,1507.2,4.53566]
[1744303810511,1.32748,1507.7,1507.3,3.31943]
[1744303810704,10.012,1507.8,1507.5,4.53535]
[1744303811012,10.89035,1507.8,1507.6,9.8078]
[1744303811209,3.3179,1508.0,1507.6,11.13528]
[1744303811509,1.3276,1507.5,1507.4,40.8]
[1744303811813,1.32759,1507.6,1507.4,51.93547]
[1744303812209,0.00994199,1508.0,1507.5,3.2078]
[1744303812505,0.00994199,1508.0,1507.8,3.2078]
[1744303812712,1.33710199,1508.0,1507.9,9.9139]
[1744303813612,1.33710199,1508.0,1507.6,10.52728]
[1744303813613,1.32742,1507.7,1507.6,3.2078]
[1744303813811,1.3276,1507.5,1507.4,40.8]
[1744303814206,1.32769,1507.4,1507.3,0.00994199]
[1744303814910,1.32769,1507.4,1507.3,40.80994199]
[1744303815109,9.53549,1507.4,1507.3,40.80994199]
[1744303815721,1.32786,1507.2,1507.1,9.9139]
[1744303816009,1.32786,1507.2,1506.8,4.536]
[1744303816010,1.32817,1506.9,1506.7,3.2078]
[1744303816213,1.32821,1506.8,1506.7,9.405]
[1744303816412,3.2078,1506.8,1506.4,10.17498206]
[1744303816603,1.32848,1506.5,1506.4,10.17498206]
[1744303816802,4.53628,1506.5,1506.4,8.67266405]
[1744303817017,6.32848,1506.5,1506.4,8.67266405]
[1744303817313,18.66468,1506.5,1506.4,1.43e-06]
[1744303817513,1.32857,1506.4,1506.3,13.80839084]
[1744303817718,1.32874,1506.2,1506.1,17.20159073]
[1744303817917,105.71954,1506.2,1506.1,15.67190073]
[1744303818219,110.71954,1506.2,1506.1,15.67190073]
[1744303818410,110.71954,1506.2,1506.1,10.77333073]
[1744303818610,110.71954,1506.2,1506.1,8.98873073]
[1744303818920,1.32892,1506.0,1505.9,25.34511569]
[1744303819217,14.55572,1506.0,1505.9,25.34511569]
[1744303819419,19.55572,1506.0,1505.9,23.56615569]
[1744303820114,11.34792,1506.0,1505.9,23.56615569]
[1744303820415,1.32901,1505.9,1505.8,0.00994199]
[1744303820612,10.61131,1505.9,1505.8,0.00994199]
[1744303820914,13.81911,1505.9,1505.8,1.99e-06]
[1744303821803,1.32963,1505.2,1505.1,9.9197]
[1744303822111,3.32342,1505.5,1505.1,9.9197]
[1744303822112,10.019,1505.5,1505.2,2.50578272]
[1744303822418,1.32945,1505.4,1505.3,9.5052]
[1744303822720,1.32945,1505.4,1505.3,12.01098272]
[1744303823016,1.32945,1505.4,1505.3,43.30578272]
[1744303823213,1.32945,1505.4,1505.3,52.81098272]
[1744303823419,3.32275,1505.8,1505.3,61.01878272]
[1744303823617,1.32933,1505.6,1505.5,1.32936]
[1744303823819,1.32931,1505.6,1505.4,2.50578272]
[1744303824121,1.32931,1505.6,1505.5,2.50578272]
[1744303824312,1.3294,1505.5,1505.4,2.50578272]
[1744303824616,1.32921,1505.7,1505.6,1.32924]
[1744303824817,1.32927,1505.6,1505.5,7.04291272]
[1744303825025,23.23463,1505.9,1505.5,4.53713]
[1744303825209,0.00994199,1506.0,1505.9,1.32901]
[1744303825713,0.00994199,1506.0,1505.9,8.83479272]
[1744303826713,0.00994199,1506.0,1505.9,14.82679272]
[1744303826916,11.57243921,1506.6,1506.2,1.32868]
[1744303827118,1.32851,1506.5,1506.4,1.3285]
[1744303827320,1.32857,1506.4,1506.3,2.49580073]
[1744303827515,1.32883,1506.1,1506.0,3.2078]
[1744303827817,1.32883,1506.1,1506.0,4.37499073]
[1744303828020,0.00994199,1506.2,1506.0,4.37499073]
[1744303828208,1.32883,1506.1,1506.0,3.2078]
[1744303828615,1.32883,1506.1,1506.0,4.37499073]
[1744303828814,1.32883,1506.1,1506.0,1.16719073]
[1744303830320,1.32883,1506.1,1506.0,4.37499073]
[1744303830526,5.04363921,1506.6,1506.1,3.32209]
[1744303830725,5.04363921,1506.6,1506.3,3.2078]
[1744303831019,5.04363921,1506.6,1506.5,4.53628]
[1744303831215,5.04363921,1506.6,1506.5,45.33628]
[1744303831419,10.1076778,1507.0,1506.5,61.64202]
[1744303831613,10.1076778,1507.0,1506.9,4.53593]
[1744303832118,1.32755,1507.6,1507.0,1.32804]
[1744303832319,0.00994199,1507.3,1507.2,3.2078]
[1744303832521,1.33771199,1507.3,1507.2,3.2078]
[1744303832717,1.32795,1507.1,1507.0,4.53582]
[1744303832921,1.32792,1507.2,1507.0,3.2078]
[1744303833119,1.32792,1507.2,1507.0,4.53584]
[1744303833319,0.00994199,1507.3,1507.0,3.2078]
[1744303833520,0.00994199,1507.3,1507.2,4.53566]
[1744303833921,0.00994199,1507.3,1507.2,9.53566]
[1744303834124,0.00994199,1507.3,1507.2,3.2078]
[1744303834428,0.00994199,1507.3,1507.2,4.53566]
[1744303834624,0.00994199,1507.3,1507.2,3.2078]
[1744303834820,0.01988398,1507.3,1507.2,3.2078]
[1744303835018,0.00994199,1507.3,1507.2,3.2078]
[1744303835224,0.00994199,1507.3,1507.2,4.53566]
[1744303836229,0.00994199,1507.3,1507.2,9.53566]
[1744303837022,1.34765398,1507.3,1507.2,3.2078]
[1744303837325,1.34765398,1507.3,1506.9,44.12032]
[1744303837326,0.01988398,1507.3,1507.0,4.53577]
[1744303837530,0.01988398,1507.3,1507.0,3.2078]
[1744303837727,0.01988398,1507.3,1507.1,1.32791]
[1744303837928,0.01988398,1507.3,1507.2,4.53566]
[1744303838128,1.34765398,1507.3,1507.2,3.2078]
[1744303838631,1.34769398,1507.3,1507.0,3.2078]
[1744303838824,1.34772398,1507.3,1507.1,1.32788]
[1744303839025,1.32786,1507.2,1507.1,1.32788]
[1744303839227,1.32795,1507.1,1507.0,3.2078]
[1744303839427,1.33778199,1507.3,1507.1,1.32795]
[1744303839628,1.34772398,1507.3,1507.2,3.2078]
[1744303839830,0.01988398,1507.3,1507.2,4.53566]
[1744303840025,13.2328,1507.9,1507.4,3.31919]
[1744303840225,1.32742,1507.7,1507.6,1.32744]
[1744303840421,1.32751,1507.6,1507.5,4.53534]
[1744303840632,1.32739,1507.8,1507.5,3.2078]
[1744303840834,3.31834,1507.8,1507.3,3.2078]
[1744303841032,1.32763,1507.5,1507.4,1.32764]
[1744303841228,12.89887,1507.7,1507.6,1.32751]
[1744303841229,0.00994199,1507.7,1507.6,1.32751]
[1744303842032,3.2078,1508.3,1507.6,11.63746]
[1744303842233,0.00994199,1508.3,1507.9,3.2078]
[1744303842427,10.52078199,1508.3,1508.1,1.32705]
[1744303842627,0.00994199,1508.3,1508.2,42.12698]
[1744303842828,1.33683199,1508.3,1508.2,40.8]
[1744303843329,3.31779,1508.1,1507.7,3.2078]
[1744303843527,1.32733,1507.8,1507.7,4.5352]
[1744303844024,1.32732,1507.9,1507.7,3.2078]
[1744303844228,10.51113,1508.0,1507.9,1.32724]
[1744303844430,10.51113,1508.0,1507.8,50.4825]
[1744303844630,0.00983972,1508.4,1508.0,1.32711]
[1744303844830,1.32716,1508.0,1507.9,3.2078]
[1744303845030,12.50116,1508.3,1507.9,12.8903]
[1744303845230,1.32712,1508.1,1507.9,12.8903]
[1744303845427,10.51088,1508.3,1508.1,1.327]
[1744303845632,9.1839,1508.3,1507.9,12.8903]
[1744303845833,1.32716,1508.0,1507.9,14.2175]
[1744303846034,1.32716,1508.0,1507.9,9.6825]
[1744303846229,13.28385,1508.1,1507.8,40.8]
[1744303846424,1.32701,1508.2,1507.9,12.4494]
[1744303846630,1.32696,1508.3,1508.2,1.32696]
[1744303846833,10.83481972,1508.4,1508.3,1.32689]
[1744303847038,10.83481972,1508.4,1508.2,1.32691]
[1744303847039,1.32691,1508.3,1508.2,1.32691]
[1744303847341,1.33670972,1508.4,1508.3,1.32689]
[1744303847851,1.32689,1508.3,1508.2,10.57850199]
[1744303848029,1.32689,1508.3,1508.2,10.57852199]
[1744303848645,1.32689,1508.3,1508.2,9.25154199]
[1744303848943,6.32689,1508.3,1508.2,0.00994199]
[1744303849437,10.31909,1508.3,1508.2,0.00994199]
[1744303850034,1.32689,1508.3,1508.2,0.00994199]
[1744303850236,1.33671972,1508.4,1508.2,0.00994199]
[1744303850540,1.33671972,1508.4,1508.3,1.32689]
[1744303850743,1.33671972,1508.4,1508.3,10.28689]
[1744303851038,10.32891972,1508.4,1508.3,8.96]
[1744303851235,1.32689,1508.3,1508.2,0.00994199]
[1744303852140,1.32689,1508.3,1508.2,1.33692199]
[1744303852345,1.32689,1508.3,1508.2,0.00994199]
[1744303852540,1.32689,1508.3,1508.2,3.21774199]
[1744303852742,10.32890972,1508.4,1508.3,1.32689]
[1744303853044,0.00983972,1508.4,1508.3,10.75579]
[1744303853338,0.00983972,1508.4,1508.3,15.75579]
[1744303853539,1.33663972,1508.4,1508.3,10.75579]
[1744303853742,0.00983972,1508.4,1508.3,10.75579]
[1744303853936,1.33663972,1508.4,1508.3,10.75579]
[1744303854440,0.00983972,1508.4,1508.3,10.75579]
[1744303854638,0.00983972,1508.4,1508.2,3.21774199]
[1744303854838,0.00983972,1508.4,1508.3,1.32689]
[1744303855033,0.00983972,1508.4,1508.3,10.58409]
[1744303855238,0.00983972,1508.4,1508.3,15.58409]
[1744303855441,0.00983972,1508.4,1508.3,10.58409]
[1744303855743,9.72e-06,1508.4,1508.3,15.58409]
[1744303856037,3.31611,1508.9,1508.3,22.69944]
[1744303856238,9.7669,1508.8,1508.5,3.2078]
[1744303856443,1.32656,1508.7,1508.6,9.2572]
[1744303856641,1.32663,1508.6,1508.5,4.5345]
[1744303856844,1.32663,1508.6,1508.5,12.465]
[1744303857037,1.32667,1508.6,1508.5,1.32668]
[1744303857238,1.32667,1508.6,1508.5,9.2572]
[1744303857442,1.32672,1508.5,1508.4,40.8]
[1744303858242,10.67662,1508.5,1508.4,40.8]
[1744303858944,1.32688,1508.4,1508.2,3.21774199]
[1744303859141,1.32684,1508.4,1508.3,1.32683]
[1744303859336,9.3499,1508.5,1508.3,1.32685]
[1744303859644,1.32689,1508.3,1508.2,1.33692199]
[1744303859842,1.32689,1508.3,1508.2,42.13692199]
[1744303860043,1.32689,1508.3,1508.2,50.30684199]
[1744303860239,1.32689,1508.3,1508.2,40.80994199]
[1744303860644,1.32689,1508.3,1508.2,49.85424199]
[1744303861252,1.32689,1508.3,1508.2,40.80994199]
[1744303861849,10.62829,1508.3,1508.2,40.80994199]
[1744303862149,10.3303,1508.7,1508.2,45.80994199]
[1744303862349,1.32686,1508.4,1508.3,13.57896]
[1744303862550,9.3014,1508.6,1508.3,12.2521]
[1744303862743,9.3014,1508.6,1508.5,4.53452]
[1744303863047,1.32672,1508.5,1508.4,9.0443]
[1744303863255,1.32689,1508.3,1508.2,40.80994199]
[1744303863551,11.28789,1508.3,1508.2,40.80994199]
[1744303863742,16.28789,1508.3,1508.2,40.80994199]
[1744303864247,19.49569,1508.3,1508.2,40.80994199]
[1744303864646,16.28789,1508.3,1508.2,40.80994199]
[1744303865253,25.69999,1508.3,1508.2,40.80994199]
[1744303865456,25.69999,1508.3,1508.2,1.99e-06]
[1744303866051,3.31816,1507.9,1507.4,3.2078]
[1744303866241,9.4121,1507.8,1507.4,15.81121]
[1744303866443,13.30761,1508.2,1507.6,6.52657]
[1744303866652,1.32728,1507.9,1507.8,1.32731]
[1744303866854,1.32733,1507.8,1507.7,10.61175]
[1744303867049,1.3273,1507.9,1507.8,1.32732]
[1744303867247,1.32723,1508.0,1507.9,1.32724]
[1744303867441,1.32723,1508.0,1507.9,9.4184]
[1744303867755,1.32722,1508.0,1507.8,3.2078]
[1744303868054,1.32733,1507.8,1507.7,0.00994199]
[1744303868257,1.32726,1507.9,1507.8,1.32726]
[1744303868551,1.32726,1507.9,1507.8,13.95346]
[1744303868944,1.32733,1507.8,1507.7,0.00994199]
[1744303869147,13.99913,1507.8,1507.7,0.00994199]
[1744303869351,23.91013,1507.8,1507.7,0.00994199]
[1744303869551,1.32751,1507.6,1507.5,40.8]
[1744303870656,1.32769,1507.4,1507.3,9.2333]
[1744303870855,9.9873,1507.7,1507.4,0.00994199]
[1744303871153,1.33754199,1507.5,1507.4,4.54541199]
[1744303871350,0.00994199,1507.5,1507.4,4.54541199]
[1744303871651,0.00994199,1507.5,1507.4,45.34541199]
[1744303871950,1.33754199,1507.5,1507.4,45.34541199]
[1744303872151,0.00994199,1507.5,1507.4,45.34541199]
[1744303872553,1.33754199,1507.5,1507.4,44.01774199]
[1744303872752,1.33754199,1507.5,1507.4,40.80994199]
[1744303873553,0.00994199,1507.5,1507.4,50.34543199]
[1744303873856,0.00994199,1507.5,1507.4,55.35233199]
[1744303875155,1e-08,1507.5,1507.4,55.35233199]
[1744303875365,1.32689,1508.4,1507.4,54.68864199]
[1744303875553,13.43942946,1508.7,1508.3,3.31724]
[1744303875554,11.55823946,1508.7,1508.3,3.31724]
[1744303875753,11.55819946,1508.7,1508.4,12.3645]
[1744303875954,10.23162946,1508.7,1508.4,3.2078]
[1744303876260,9.2636,1508.6,1508.3,1.32682]
[1744303876456,1.32672,1508.5,1508.4,9.18204199]
[1744303876761,1.32672,1508.5,1508.4,0.00994199]
[1744303877257,10.59032,1508.5,1508.4,0.00994199]
[1744303877959,9.912,1508.6,1508.5,1.32672]
[1744303877960,1.3267,1508.6,1508.5,1.32672]
[1744303878259,0.00994198,1508.7,1508.6,1.32663]
[1744303878655,1.33648198,1508.7,1508.6,40.8]
[1744303878860,9.54428198,1508.7,1508.6,40.8]
[1744303879056,6.33648198,1508.7,1508.6,40.8]
[1744303879469,0.00994198,1508.7,1508.4,0.00994199]
[1744303879655,1.32672,1508.5,1508.4,10.49558199]
[1744303879848,1.32672,1508.5,1508.4,49.96884199]
[1744303880256,1.32672,1508.5,1508.4,40.80994199]
[1744303880460,3.31704,1508.4,1507.9,4.53496]
[1744303880756,1.32702,1508.2,1508.1,1.32703]
[1744303880961,1.327,1508.2,1508.1,45.33481]
[1744303881258,9.911,1508.6,1508.1,49.0078]
[1744303881459,1.3268,1508.5,1508.3,3.2078]
[1744303881660,1.32672,1508.5,1508.4,9.1589]
[1744303881859,9.759,1508.6,1508.5,1.32672]
[1744303881860,1.32663,1508.6,1508.5,1.32672]
[1744303882057,1.32689,1508.3,1508.2,0.00994199]
[1744303882757,10.80849,1508.3,1508.2,0.00994199]
[1744303883168,10.80849,1508.3,1508.2,10.12972199]
[1744303883355,6.64288198,1508.7,1508.2,8.80274199]
[1744303883555,1.32689,1508.3,1508.2,8.80274199]
[1744303883755,1.32689,1508.3,1508.2,10.12972199]
[1744303884155,1.32683,1508.4,1508.3,1.32682]
[1744303884556,1.32689,1508.3,1508.2,10.12965199]
[1744303884766,1.32688,1508.4,1508.3,1.32686]
[1744303885065,3.32637198,1508.7,1508.4,9.2855]
[1744303885258,0.00994198,1508.7,1508.6,1.32663]
[1744303885457,0.00994198,1508.7,1508.6,15.61213]
[1744303886156,1e-08,1508.7,1508.6,15.61213]
[1744303886461,1e-08,1508.7,1508.6,10.61213]
[1744303886762,1e-08,1508.7,1508.6,56.41213]
[1744303887364,1e-08,1508.7,1508.6,51.41213]
[1744303887763,1e-08,1508.7,1508.6,50.0855]
[1744303887968,1.32654001,1508.7,1508.6,50.0855]
[1744303888169,4.53434001,1508.7,1508.6,40.8]
[1744303888467,1.32654001,1508.7,1508.6,40.8]
[1744303890671,6.32654001,1508.7,1508.6,40.8]
[1744303890876,1.32672,1508.5,1508.4,9.2125]
[1744303891372,1.32672,1508.5,1508.4,51.3393]
[1744303891765,1.32672,1508.5,1508.4,40.8]
[1744303891971,1.32689,1508.3,1508.2,9.76424199]
[1744303892158,1.32679,1508.5,1508.2,13.08167199]
[1744303892363,1.32684,1508.4,1508.3,1.32683]
[1744303892565,1.32679,1508.5,1508.4,1.32678]
[1744303892767,1.32679,1508.5,1508.4,11.08108]
[1744303892965,1e-08,1508.7,1508.4,14.7543]
[1744303893161,1.32654001,1508.7,1508.6,1.32663]
[1744303893381,1.32654001,1508.7,1508.6,11.08093]
[1744303893573,1.3268,1508.4,1508.3,9.1998]
[1744303893773,1.3268,1508.4,1508.3,50.5543]
[1744303894471,1.3268,1508.4,1508.3,42.12689]
[1744303894662,1.3268,1508.4,1508.3,40.8]
[1744303894862,10.5224,1508.6,1508.3,44.0078]
[1744303895067,7.78114667,1508.7,1508.6,1.32663]
[1744303895368,6.29638667,1508.7,1508.6,15.56953]
[1744303895568,10.23162946,1508.9,1508.8,1.32645]
[1744303895769,10.23162946,1508.9,1508.8,4.53425]
[1744303895969,10.23162946,1508.9,1508.8,9.53425]
[1744303896173,8.35807946,1508.9,1508.8,50.33425]
[1744303896765,0.00994199,1509.0,1508.9,1.32637]
[1744303897167,10.04208697,1509.1,1509.0,4.53408]
[1744303897366,3.2078,1510.5,1509.2,3.2078]
[1744303897571,3.2078,1510.4,1510.0,3.2078]
[1744303897769,3.31268,1510.4,1509.8,3.2078]
[1744303897964,3.2078,1510.0,1509.6,3.2078]
[1744303898169,9.4621,1509.9,1509.6,3.2078]
[1744303898378,1.32566,1509.7,1509.6,0.00994199]
[1744303898875,8.2078,1509.7,1509.0,8.2665]
[1744303899074,1.32597,1509.4,1509.1,1.32613]
[1744303899275,9.4621,1509.3,1509.2,1.3261]
[1744303899472,3.31526,1509.2,1508.8,3.2078]
[1744303899670,1.32637,1508.9,1508.8,3.2078]
[1744303899977,9.4621,1509.1,1508.8,3.2078]
[1744303900275,0.00994199,1509.0,1508.7,0.00994199]
[1744303900675,9.74214199,1509.0,1508.8,3.2078]
[1744303900872,9.74214199,1509.0,1508.7,10.32034199]
[1744303901178,9.74214199,1509.0,1508.7,0.00994199]
[1744303901370,9.74214199,1509.0,1508.7,1.33642199]
[1744303901572,9.74214199,1509.0,1508.9,1.32637]
[1744303902173,9.74214199,1509.0,1508.9,10.31027]
[1744303902379,0.00994199,1509.0,1508.9,10.31027]
[1744303902580,104.3178,1510.0,1508.9,55.57494418]
[1744303902780,9.7322,1509.7,1509.6,1.32568]
[1744303903279,1.32543,1510.0,1509.8,1.32554]
[1744303903482,9.4113,1509.9,1509.8,1.32554]
[1744303903673,9.4113,1509.9,1509.8,11.61188418]
[1744303904476,1.32525,1510.2,1510.0,1.32537]
[1744303904680,9.4113,1510.2,1510.1,42.12531]
[1744303904886,10.73652,1510.2,1510.1,40.8]
[1744303905176,23.77406346,1510.8,1510.1,45.8]
[1744303905381,9.4113,1510.7,1510.2,10.28242406]
[1744303905582,10.73611,1510.7,1510.5,1.32492]
[1744303905781,9.4113,1510.7,1510.6,1.32487]
[1744303905978,10.73615,1510.7,1510.5,4.53272]
[1744303906186,1.3248,1510.7,1510.5,3.2078]
[1744303906386,10.37277,1510.6,1510.5,3.2078]
[1744303906687,9.0479,1510.6,1510.5,4.53276]
[1744303907586,5.0627,1511.1,1510.5,6.52017]
[1744303907783,9.0479,1511.0,1510.7,3.2078]
[1744303908087,101.095,1511.4,1510.9,3.2078]
[1744303908286,9.0479,1511.3,1511.2,1.32435]
[1744303908487,6.62659762,1511.8,1511.4,1.32411]
[1744303908488,0.10901762,1511.8,1511.4,1.32411]
[1744303908797,9.0479,1511.7,1511.6,1.324]
[1744303909082,3.31029,1511.5,1511.1,0.00994199]
[1744303909283,3.31012,1511.6,1511.1,3.21774199]
[1744303909592,1.32434,1511.3,1511.2,40.8]
[1744303910091,9.2075,1511.4,1511.2,40.8]
[1744303910290,9.2075,1511.4,1511.3,1.32426]
[1744303910478,4.9726,1511.7,1511.5,1.324]
[1744303910479,6.29653,1511.7,1511.5,1.324]
[1744303910679,9.2075,1511.4,1511.1,0.00994199]
[1744303910884,9.2075,1511.4,1511.1,1.33432199]
[1744303911089,4.53215,1511.2,1511.1,0.00994199]
[1744303911388,3.31118,1511.1,1510.7,3.2078]
[1744303911593,1.32464,1510.9,1510.7,3.2078]
[1744303911890,5.2552,1511.3,1510.7,4.53254]
[1744303912092,3.2078,1511.7,1511.1,3.2078]
[1744303912288,0.10901762,1511.8,1511.1,3.2078]
[1744303912483,9.15864199,1511.6,1511.5,1.32408]
[1744303912683,0.00994199,1511.6,1511.5,4.53188]
[1744303912889,0.00994199,1511.6,1511.5,9.53188]
[1744303913085,0.00994199,1511.6,1511.5,19.02278]
[1744303913287,0.0891356,1511.8,1511.5,19.02278]
[1744303913492,5.6e-06,1511.8,1511.7,4.53171]
[1744303913891,1.3238256,1511.8,1511.7,3.2078]
[1744303914091,1.3238256,1511.8,1511.7,4.53171]
[1744303914281,1.3238256,1511.8,1511.7,3.2078]
[1744303914481,5.6e-06,1511.8,1511.7,3.2078]
[1744303914685,5.6e-06,1511.8,1511.6,1.32397]
[1744303914886,6.5173856,1511.8,1511.3,4.532]
[1744303915190,9.1487,1511.7,1511.3,12.6987]
[1744303915492,1.32426,1511.3,1511.2,40.80994199]
[1744303915991,1.32417,1511.4,1511.2,42.13424199]
[1744303916197,6.51758,1511.7,1511.2,40.80994199]
[1744303916391,8.9402,1511.7,1511.3,6.51831]
[1744303916693,8.9402,1511.7,1511.6,1.324]
[1744303916889,8.9402,1511.7,1511.4,9.4794]
[1744303917089,12.25008,1511.7,1511.3,1.32422]
[1744303917289,1.32407,1511.6,1511.2,44.12081199]
[1744303917490,8.9402,1511.6,1511.3,12.6872]
[1744303917696,8.9402,1511.6,1511.4,9.4794]
[1744303917893,8.9402,1511.6,1511.5,1.32408]
[1744303918493,1.32409,1511.5,1511.4,1.32412]
[1744303918689,8.9402,1511.6,1511.2,40.80994199]
[1744303918690,1.32426,1511.3,1511.2,42.13422199]
[1744303918895,12.2502,1511.6,1511.4,1.32413]
[1744303918896,1.32411,1511.5,1511.4,1.32413]
[1744303919195,9.0463,1511.5,1511.4,1.32417]
[1744303919696,6.1094856,1511.8,1511.4,12.73435]
[1744303919998,9.0463,1511.7,1511.6,4.53174]
[1744303920210,10.37021,1511.7,1511.6,3.2078]
[1744303920493,9.0463,1511.7,1511.6,4.5318]
[1744303920800,1.32413,1511.5,1511.2,45.89674199]
[1744303920993,1.32426,1511.3,1511.2,40.80994199]
[1744303921491,3.3109,1511.2,1510.7,3.2078]
[1744303921798,12.96674,1511.1,1510.7,1.32474]
[1744303922093,7.00901004,1511.1,1510.9,1.32456]
[1744303922291,3.2078,1511.4,1510.9,3.31153]
[1744303922491,6.51826,1511.4,1511.0,50.6493]
[1744303922696,1.33420199,1511.3,1511.2,1.32435]
[1744303922901,0.00994199,1511.3,1511.0,50.65924199]
[1744303923087,1.32443,1511.1,1511.0,40.80994199]
[1744303923490,5.24014199,1511.3,1511.0,40.80994199]
[1744303923894,1.32443,1511.1,1511.0,40.80994199]
[1744303924405,1.32505,1510.4,1510.3,3.2078]
[1744303924698,11.86175199,1511.3,1509.3,76.13816]